Cogmind - Beta 16 @@@ ROGUE MODE // 2025.10.30 @ 20:03:07 Player: Naughtyusername Result: Destroyed by Y-45 Defender with Heavy Assault Rifle Performance ------------- Evolutions (0) 0 Regions Visited (3) 600 Robots Destroyed (49) 245 Value Destroyed (1018) 1018 Prototype IDs (4) 80 Alien Tech Used (0) 0 Bonus (26) 26 TOTAL SCORE: 1969 Bonus ------- High Alert Combat Kills 26 Cogmind --------- Core Integrity 0/250 Matter 300/300 Energy 236/250 System Corruption 0% Temperature Cool (29) Movement Rolling (145) Ox3 Location -9/Recycling Parts ------- > --- POWER (1) -------- Ion Engine > --- PROPULSION (2) --- Light Treads Compact Wheel > --- UTILITY (2) ------ Disposable Heat Sink High-capacity Storage Unit > --- WEAPON (2) ------- Beam Cannon Beam Cannon > --- INVENTORY (20) --- Light Ion Engine Light Ion Engine Improved Ion Engine Subdweller Power Source Subdweller Power Source Makeshift Power Source Light Treads Compact Wheel Compact Wheel Heat Sink Small Storage Unit Seismic Detector Utility Shielding Weapon Shielding Weapon Shielding Light Armor Plating Subdweller Laser Light Assault Rifle Grenade Launcher Mining Laser Peak State ------------ > --- POWER ------------ Ion Engine > --- PROPULSION ------- Light Treads Compact Wheel > --- UTILITY ---------- Disposable Heat Sink High-capacity Storage Unit > --- WEAPON ----------- Beam Cannon Beam Cannon > --- INVENTORY -------- Light Ion Engine Light Ion Engine Subdweller Power Source Subdweller Power Source Makeshift Power Source Heat Sink Small Storage Unit Seismic Detector Utility Shielding Weapon Shielding Weapon Shielding Subdweller Laser Light Assault Rifle Grenade Launcher Mining Laser [Rating: 10] Favorites ----------- Power Ion Engine Engine Ion Engine Propulsion Light Treads Treads Light Treads Wheel Compact Wheel Utility High-capacity Storage Unit Device Heat Sink Storage High-capacity Storage Unit Weapon Beam Cannon Energy Gun Subdweller Laser Energy Cannon Beam Cannon Ballistic Gun Light Assault Rifle Launcher Grenade Launcher Special Weapon Mining Laser Build | -11 -10 -10 -9 ------- Run | Yrd Mat Sub Rec Slots Evolved . | . . . . Power . | . . . . Propulsion . | . . . . Utility . | . . . . Weapon . | . . . . Parts Attached 24 | 6 8 6 4 Power 3 | 1 1 1 . Engine 3 | 1 1 1 . Core . | . . . . Reactor . | . . . . Propulsion 6 | 2 2 . 2 Treads 5 | 2 2 . 1 Leg . | . . . . Wheel 1 | . . . 1 Hover . | . . . . Flight . | . . . . Utility 7 | 2 3 1 1 Device 5 | 1 2 1 1 Storage 2 | 1 1 . . Processor . | . . . . Hackware . | . . . . Protection . | . . . . Artifact . | . . . . Weapon 8 | 1 2 4 1 Energy Gun 1 | . . 1 . Energy Cannon 3 | . 1 1 1 Ballistic Gun 2 | 1 . 1 . Ballistic Cannon . | . . . . Launcher 1 | . 1 . . Special Weapon 1 | . . 1 . Impact Weapon . | . . . . Slashing Weapon . | . . . . Piercing Weapon . | . . . . Special Melee Weapon . | . . . . Unidentified Prototypes . | . . . . Parts Lost 10 | . 3 7 . Power 1 | . . 1 . Propulsion 4 | . 2 2 . Utility 3 | . 1 2 . Weapon 2 | . . 2 . Highest Loss Streak 3 | . 1 3 . To Critical Strikes . | . . . . Average Backups 14 | . 11 16 19 Power 4 | . 2 4 5 Propulsion . | . . . 2 Utility 6 | . 4 6 6 Weapon 4 | . 3 4 4 Tool/Special . | . . . . Unused Backups 13 | . . . 13 Power 5 | . . . 5 Propulsion 3 | . . . 3 Utility 5 | . . . 5 Weapon . | . . . . Tool/Special . | . . . . Average Slot Usage (%) 76 | . 96 57 96 Engine 13 | . 14 13 14 Treads 13 | . 27 4 12 Wheel 1 | . . . 12 Device 7 | . 11 2 13 Storage 14 | . 14 14 14 Energy Gun 3 | . . 5 . Energy Cannon 10 | . 11 4 27 Ballistic Gun 6 | . 13 3 . Launcher 2 | . 1 3 . Special Weapon 2 | . . 5 . Peak Build Rating 10 | 6 8 9 10 Average Rating 7 | 4 7 6 9 On Entrance 5 | . 6 8 7 Avg Prop Armor Cover (%) 13 | . . . 13 Naked Turns . | . . . . Heaviest Build 52 | 10 50 52 52 Greatest Support 40 | 40 40 40 16 Greatest Overweight (x) 17 | . 1 17 17 Average Overweight (x) 3 | . . 9 3 Largest Inventory Capacity 20 | 8 20 20 20 Average Capacity 19 | 7 18 20 20 Most Carried 20 | 1 14 17 20 Average Carried 14 | . 11 16 19 Final Capacity 20 | 8 20 20 20 Final Carried 20 | 1 14 16 20 Class Distribution -------------------- 100% | Mutant Dominant Class ---------------- Mutant | -10/Materials Mutant | -10/Subcaves Mutant | -9/Recycling Resources | -11 -10 -10 -9 ----------- Run | Yrd Mat Sub Rec Matter Collected 774 | 274 298 62 140 Remotely . | . . . . Salvage Created 1390 | 120 632 191 447 Parts 103 | 10 56 11 26 Haulers Intercepted 1 | . 1 . . Recyclers Shooed 1 | 1 . . . Parts Field Recycled . | . . . . Retrieved Matter . | . . . . Parts Self-Destructed 20 | . . 20 . Prevented . | . . . . Parts Restored . | . . . . Kills | -11 -10 -10 -9 ------- Run | Yrd Mat Sub Rec Combat Hostiles Destroyed 36 | . 28 6 2 Guns 2 | . 1 1 . Cannons 18 | . 12 4 2 AOE 16 | . 15 1 . Classes Destroyed 10 | 2 6 2 . Worker 1 | . 1 . . Builder 1 | . 1 . . Tunneler 3 | 2 1 . . Hauler 1 | . 1 . . Recycler 6 | 1 . . 5 Operator 1 | . 1 . . Swarmer 17 | . 15 2 . Grunt 13 | . 13 . . Sentry 3 | . . 1 2 Subdweller 3 | . . 3 . Best Kill Streak 9 | 3 9 2 3 Combat Bots Only 7 | . 7 2 1 Max Kills in Single Turn 4 | 1 4 1 1 Gunslinging . | . . . . Exploded 3 | . 3 1 . Melee . | . . . . Uniques/NPCs Destroyed . | . . . . Combat | -11 -10 -10 -9 -------- Run | Yrd Mat Sub Rec Hostile Shots Fired 135 | . 77 52 6 Missed 39 | . 22 17 . Hits 96 | . 55 35 6 Projectile 96 | . 55 35 6 Critical Strikes 2 | . . 2 . Damage Taken 1475 | . 721 666 88 Core 254 | . 117 109 28 Absorbed by Shields . | . . . . Core Remaining (%) 100 | 100 . . . Volleys Fired 123 | 14 59 36 14 Largest 2 | 1 2 2 2 Hottest 160 | 20 80 160 120 Shots Fired 205 | 14 104 59 28 Gun 82 | 14 45 23 . Cannon 98 | . 45 25 28 Launcher 18 | . 14 4 . Special 7 | . . 7 . Kinetic 81 | 14 45 22 . Thermal 106 | . 45 33 28 Explosive 18 | . 14 4 . Electromagnetic . | . . . . Robot Hit Streak 19 | 4 11 19 6 Robot Miss Streak 5 | 2 5 3 3 Penetration Max . | . . . . Secondary Targets . | . . . . Shots Hit Robots 118 | 9 57 37 15 Core Hits 66 | 6 40 11 9 Critical Kills . | . . . . Critical Parts Destroyed 2 | . 1 1 . Critical Strikes 2 | . 1 1 . Destroy 2 | . 1 1 . Melee Attacks . | . . . . Impact . | . . . . Slashing . | . . . . Piercing . | . . . . Sneak Attacks . | . . . . Combat Hostiles . | . . . . Follow-up Attacks . | . . . . Damage Inflicted 2861 | 72 1903 599 287 Guns 521 | 68 211 242 . Cannons 1199 | . 599 317 283 Explosions 1113 | . 1073 40 . Melee . | . . . . Ramming 28 | 4 20 . 4 Kinetic 502 | 68 211 223 . Thermal 1218 | . 599 336 283 Explosive 1113 | . 1073 40 . Electromagnetic . | . . . . Impact . | . . . . Slashing . | . . . . Piercing . | . . . . Highest Corruption . | . . . . Average Corruption . | . . . . Corruption Purged . | . . . . Corruption Blocked . | . . . . Overload Shots . | . . . . Overflow Damage 114 | . 94 20 . Projectiles . | . . . . Explosions 114 | . 94 20 . Melee . | . . . . Knockbacks . | . . . . Impact . | . . . . Kinetic . | . . . . Secondary . | . . . . Self-Inflicted Damage 186 | . 184 . 2 Shots 4 | . 4 . . Rammed 7 | 1 5 . 1 Targets Rammed 8 | 1 6 . 1 Kicked . | . . . . Crushed 1 | . 1 . . Highest Temperature 189 | . 118 17 189 Average Temperature 49 | . 36 12 73 Received Heat Transfer 402 | . 204 171 27 Siege Activations . | . . . . Martial Activations . | . . . . Shielding Activations . | . . . . Robots Disrupted . | . . . . Combat Hostiles . | . . . . Robots Corrupted . | . . . . Combat Hostiles . | . . . . Parts Fried . | . . . . Impact Corruptions . | . . . . Robots Melted . | . . . . Combat Hostiles . | . . . . Parts Melted 3 | . 2 . 1 Heat Transferred 2541 | . 1258 691 592 Parts Sabotaged . | . . . . Parts Stolen . | . . . . Parts Stripped . | . . . . Power Chain Reactions . | . . . . Alert | -11 -10 -10 -9 ------- Run | Yrd Mat Sub Rec Maximum Alert Level 2 | . 2 . . Low Security (%) 59 | 100 38 . 100 Level 1 34 | . 52 . . Level 2 6 | . 9 . . Level 3 . | . . . . Level 4 . | . . . . Level 5 . | . . . . High Security . | . . . . Max Security . | . . . . Peak Influence 426 | 10 426 . 120 Initial 27 | . . . 27 Average 183 | 1 259 . 37 Influence Increases 1342 | 15 964 105 258 Destroy 0b10 Robot/C 660 | . 560 60 40 Destroy 0b10 Robot/NC 65 | 15 25 . 25 Destroy Leader 102 | . 102 . . Successful Hack 39 | . 26 . 13 Select Force Hacks 240 | . 60 . 180 Disable Machine 105 | . 105 . . Destroy Structure 86 | . 86 . . Lose Combat Pursuer 45 | . . 45 . Influence Decreases 1342 | 15 541 471 315 Entered New Map 234 | . . 204 30 Time Decay 1028 | 15 511 217 285 Lost Part 80 | . 30 50 . Squads Dispatched 5 | . 5 . . Investigation 3 | . 3 . . Extermination . | . . . . Reinforcement 2 | . 2 . . Assault . | . . . . Garrison . | . . . . Intercept . | . . . . Searches Triggered . | . . . . Construction Impeded . | . . . . Haulers Reinforced . | . . . . Active Scanning Responses . | . . . . Cargo Convoy Interrupts . | . . . . Stealth | -11 -10 -10 -9 --------- Run | Yrd Mat Sub Rec Distress Signals 3 | . 3 . . Communications Jammed . | . . . . Distress Signals . | . . . . Times Spotted 55 | . 43 9 3 Peak Tracking Total 5 | . 5 2 1 Tactical Retreats 1 | . . 1 . Traps | -11 -10 -10 -9 ------- Run | Yrd Mat Sub Rec Traps Triggered 1 | . 1 . . Indirectly . | . . . . Trap Hack Attempts . | . . . . Triggered . | . . . . Disarmed . | . . . . Reprogrammed . | . . . . Reused . | . . . . Traps Extracted . | . . . . Installed . | . . . . Triggered . | . . . . Machines | -11 -10 -10 -9 ---------- Run | Yrd Mat Sub Rec Machines Disabled 8 | . 7 1 . Max in Single Turn 3 | . 3 1 . Machines Repaired . | . . . . Machines Dismantled . | . . . . Machines Sabotaged . | . . . . Overloaded Fab Kills . | . . . . Hacking | -11 -10 -10 -9 --------- Run | Yrd Mat Sub Rec Machines Accessed 16 | . 6 1 9 Terminals 7 | . 4 . 3 Fabricators . | . . . . Repair Stations . | . . . . Recycling Units 8 | . 2 . 6 Scanalyzers . | . . . . Garrison Access . | . . . . Total Hacks 48 | . 19 4 25 Successful 34 | . 13 4 17 Failed 14 | . 6 . 8 Catastrophic . | . . . . Database Lockouts . | . . . . Manual 30 | . 13 . 17 Terminals 33 | . 16 . 17 Fabricators . | . . . . Repair Stations . | . . . . Recycling Units 11 | . 3 . 8 Scanalyzers . | . . . . Garrison Access . | . . . . Terminal Hacks 14 | . 6 4 4 Record 5 | . 1 4 . Part Schematic 2 | . . . 2 Robot Analysis 2 | . 2 . . Prototype ID Bank 2 | . 2 . . Terminal Index 1 | . . . 1 Alert Level 1 | . . . 1 Recall Reinforcements 1 | . 1 . . Fabricator Hacks . | . . . . Repair Station Hacks . | . . . . Recycling Unit Hacks 1 | . 1 . . Retrieve Components 1 | . 1 . . Scanalyzer . | . . . . Garrison Access Hacks . | . . . . Unauthorized Hacks 19 | . 6 . 13 Terminals 11 | . 4 . 7 Track 1 | . . . 1 Botnet 5 | . 2 . 3 Skim 5 | . 2 . 3 Fabricators . | . . . . Repair Stations . | . . . . Recycling Units 8 | . 2 . 6 Tunnel 8 | . 2 . 6 Scanalyzers . | . . . . Garrison Access . | . . . . Data Cores Recovered . | . . . . Used . | . . . . Hacking Detections 7 | . 4 . 3 Full Trace Events . | . . . . Feedback Events . | . . . . Feedback Blocked . | . . . . Robot Schematics Acquired . | . . . . Robots Built . | . . . . Authchips . | . . . . Time . | . . . . Total Robot Build Rating . | . . . . Part Schematics Acquired 2 | . . . 2 Parts Built . | . . . . Authchips . | . . . . Time . | . . . . Total Part Build Rating . | . . . . Part Studies Acquired . | . . . . Parts Repaired . | . . . . Time . | . . . . Parts Recycled . | . . . . Recycled Matter . | . . . . Retrieved Matter . | . . . . Retrieved Components 6 | . 6 . . Parts Scanalyzed . | . . . . Part Schematics Acquired . | . . . . Parts Damaged . | . . . . Bothacking | -11 -10 -10 -9 ------------ Run | Yrd Mat Sub Rec Used RIF Installer . | . . . . Robots Hacked . | . . . . Non-combat . | . . . . Combat . | . . . . Robot Hacks Applied . | . . . . Relay Couplers Released . | . . . . Fabnet Peak Effective % . | . . . . Robots Rewired . | . . . . Allies Hacked . | . . . . Hacks Repelled . | . . . . Allies | -11 -10 -10 -9 -------- Run | Yrd Mat Sub Rec Total Allies . | . . . . Largest Group . | . . . . Highest-Rated Group . | . . . . Highest-Rated Ally . | . . . . Total Orders . | . . . . Ally Attacks . | . . . . Total Damage . | . . . . Kills . | . . . . Allies Corrupted . | . . . . Allies Melted . | . . . . Intel | -11 -10 -10 -9 ------- Run | Yrd Mat Sub Rec Active Infowar (turns) 183 | 21 162 . . Seismic 183 | 21 162 . . Robot Analysis Total 2 | . 2 . . Derelict Logs Recovered 1 | . . 1 . Drone Launches . | . . . . Drone Recoveries . | . . . . Exploration | -11 -10 -10 -9 ------------- Run | Yrd Mat Sub Rec Turns Passed 4938 | 100 1624 2490 724 Spaces Moved 1444 | 42 617 390 395 Core 239 | 3 . 229 7 Treads 817 | 39 617 161 . Legs . | . . . . Wheels 388 | . . . 388 Hover . | . . . . Flight . | . . . . Fastest Speed 50 | 50 160 240 145 Average Speed 309 | 152 229 606 158 Slowest Speed 900 | 160 240 900 900 Overloaded Moves . | . . . . Propulsion Burnouts . | . . . . Robots Hopped . | . . . . Potential Cave-ins . | . . . . Cave-ins Triggered . | . . . . Exploration Rate (%) 52 | 5 99 39 65 Regions Visited 3 Branch Regions 2 Pre-discovered Areas 9 | . 2 1 6 Known Exits Taken 1 | . . 1 . Unknown Exits Taken 2 | 1 1 . . Scrap Searched . | . . . . Spaces Dug . | . . . . Terrain Destroyed 107 | . 89 18 . Melee . | . . . . Projectile . | . . . . AOE 107 | . 89 18 . Terrain Rammed . | . . . . Walls Destroyed . | . . . . Machines Disabled . | . . . . Actions | -11 -10 -10 -9 --------- Run | Yrd Mat Sub Rec Total 1692 | 63 715 450 464 Wait 58 | . 5 9 44 Move 1442 | 42 616 389 395 Hop . | . . . . Pick Up 25 | 1 13 6 5 Fast Attach 10 | 6 2 . 2 Attach 8 | . 3 4 1 Detach 1 | . 1 . . Swap 18 | . 10 6 2 Drop . | . . . . Fire 123 | 14 59 36 14 Melee . | . . . . Ram 1 | . . . 1 Kick . | . . . . Crush 6 | . 6 . . Escape Stasis . | . . . . Rewire . | . . . . Trap . | . . . . Miscellaneous . | . . . . Route ------- -11/Scrapyard -10/Materials (discovered 6 exits: [*Mat x3] / [*Min x2] / *Sub) -10/Subcaves (discovered 2 exits: [*Mat] / *Rec) -9/Recycling History --------- Turn | Location | Event 4 | -11/Scrapyard | Discovered new exit (range 15) 101 | -11/Scrapyard | Entered Materials 303 | -10/Materials | Build established: Mutant 317 | -10/Materials | Discovered new exit (range 13) 667 | -10/Materials | Discovered new exit (range 15) 788 | -10/Materials | Destroyed 7 combat bots 826 | -10/Materials | Discovered new exit (range 11) 902 | -10/Materials | Discovered new exit (range 4) 1072 | -10/Materials | Discovered new exit (range 7) 1702 | -10/Materials | Discovered new exit (range 9) 1725 | -10/Materials | Entered Subcaves 1726 | -10/Subcaves | Shifting Twisted Machinery released Sub. Power Source 1726 | -10/Subcaves | Shifting Twisted Machinery released Shrapnel Trap 1730 | -10/Subcaves | Shifting Twisted Machinery released Mak. Power Source 1765 | -10/Subcaves | Discovered new exit (range 7) 1871 | -10/Subcaves | Core integrity fell below 50% 1921 | -10/Subcaves | Lost 3 parts (1p1n1u) 2221 | -10/Subcaves | Visited Clippyterm 2231 | -10/Subcaves | Identified exit to Recycling 2267 | -10/Subcaves | Core integrity fell below 20% 2311 | -10/Subcaves | Learned location of Zion (-7) 4215 | -10/Subcaves | Entered Recycling 4939 | -9/Recycling | Destroyed by Y-45 Defender with Heavy Assault Rifle Last Messages --------------- Trojan loaded successfully. Testing... Terminal linked with 2 systems. Awaiting botnet instructions. >>Index(Terminals) Found 6 terminals. Downloaded coordinate data. >>Schematic(Adv. Targeting Computer) Downloading schematic... Adv. Targeting Computer Rating: 3 Schematic downloaded. >>Schematic(Imp. Titanium Leg) Downloading schematic... Imp. Titanium Leg Rating: 4 Schematic downloaded. >>Alert(Check) Current Alert Level: Low Security 04938_ Y-45 Defender springs to life. Map ----- +----------------------------------------------------+ | ?????????????????????????????????????????????????? | | ?????????????????????????????????????????????????? | | ?????????????????????????????????????????????????? | | ?????????????????????????????????????????????????? | | ?????????????????????????????????????????????????? | | ?????????????????????????????????????????????????? | | ?#########???????????????????????????????????????? | | ?# #???????????????????????????????????????? | | ?# #???????????????????????????????????????? | | ?# #???????????????????????????????????????? | | ??? ?????????????????????????????????????????? | | ????#+#??????????????????????????????????????????? | | ????# #?????####################?????????????????? | | ????# #?????# ! #?????????????????? | | ????# #?????# ! ! ! #?????????????????? | | #####+#####?# !! ! #?????????????????? | | # #?# ! #?????????????????? | | ## #?# !#?????????????????? | | ?# #?# ! #?????????????????? | | ?# #?# ! #?????????????????? | | ?# #?# ! ! #?????????????????? | | ?# #??########+########???????????????????? | | ?# #???##### ######## #######?????????? | | ?# #####"T"# Y ????????? | | ?# + r r????????? | | ?############ @ r ????????? | | ????????????# r " r ####+#### %%#????????????? | | ##########??# "" ##????????????????????????? | | #??# "" #?????????????????????????? | | "" """ #??# """ #?????????????????????????? | | "" """ #### "" #?????????????????????????? | | "" """ # """ ###???????????????????????? | | "" """ # """ ""#???????????????????????? | | "" """ # """ Y"#???????????????????????? | | # " ""#???????????????????????? | | "" """ + ###???????????????????????? | | "" """ # #?????????????????????????? | | "" """ ########### #?????????????????????????? | | "" """ #?????????# #?????????????????????????? | | "" """ #?????????# #?????????????????????????? | | #??????##?# #?????????????????????????? | | ###+##+###????? ## #?????????????????????????? | | ??# #????# ## #?????????????????????????? | | ### #????# """ ## #?????????????????????????? | | #????# """ ## #?????????????????????????? | | ########????# """ ## #?????????????????????????? | | !/ #???????# ## ##????????????????????????? | | [ #???????# """ # #????????????????????????? | | | #???????# """ # #????????????????????????? | | ! #?#####?# """ + #????????????????????????? | +----------------------------------------------------+ Best States ------------- Heat Dissipation 35 Coolant Potential 50 Energy Generation 10 Energy Capacity 250 Matter Stores 300 Matter Capacity 300 Sight Range 16 Terrain Scan Density 10 Evasion (%) 40 Recoil Reduction 2 Item Schematics ----------------- Adv. Targeting Computer | -9/Recycling | Hacked Imp. Titanium Leg | -9/Recycling | Hacked Robot Schematics ------------------ None Fabricated ------------ Nothing Repaired ---------- Nothing Studied --------- None Alien Tech Used ----------------- None Achievements -------------- None Challenges ------------ None Game ------ Seed ShockboltScatterSaw Manual? 0 Play Time 00:19:02 Cumulative 465.7 hours Start 2025.10.30 @ 17:36:37 End 2025.10.30 @ 20:03:07 Sessions 1 Manual Loads 0 Difficulty Rogue Special Mode None Game No. 250 Rogue 250 Adventurer 0 Explorer 0 Win Type - Total 21 Types 13/1/5/1/0/0/0/1/0/0 Lore% 93 Gallery% 85 Achievement% 77 Wizard Run 0 Options --------- Layout 2 ASCII 0 Keyboard 1 Movement Vi Keybinds 0 Fullscreen 1 Font 28/Terminus Map View 50x52 Zoom Use 0% Tactical HUD 1 Map Filters NONE Filters NONE Steam 1 RUN: 3cd3bcf1-410c-4edd-a9a1-7bf0af936209